Cogmind - Beta 12 @@@ ROGUE MODE // 2023.04.06 @ 12:33:45 Player: Stryker Result: Destroyed by as-37923 with Assembled Heavy Rifle Performance ------------- Evolutions (0) 0 Regions Visited (3) 600 Robots Destroyed (21) 105 Value Destroyed (328) 328 Prototype IDs (3) 60 Alien Tech Used (0) 0 Bonus (0) 0 TOTAL SCORE: 1093 Bonus ------- None Cogmind --------- Core Integrity 0/250 Matter 193/300 Energy 48/100 System Corruption 10% Temperature Cool (0) Movement Core (700) Ox13 Location -10/Exiles Parts ------- > --- POWER (1) -------- (None) > --- PROPULSION (2) --- (None) > --- UTILITY (2) ------ High-capacity Storage Unit > --- WEAPON (2) ------- (None) > --- INVENTORY (20) --- Light Treads Light Treads Wheel Compact Wheel Compact Wheel Small Storage Unit Medium Storage Unit Large Storage Unit Structural Scanner Visual Processing Unit Improved Terrain Scanner Seismic Detector Beam Cannon Peak State ------------ > --- POWER ------------ Light Ion Engine > --- PROPULSION ------- Light Treads Wheel > --- UTILITY ---------- High-capacity Storage Unit Light Armor Plating > --- WEAPON ----------- Medium Laser Light Assault Rifle > --- INVENTORY -------- Ion Engine Light Treads Light Treads Light Treads Aluminum Leg Aluminum Leg Wheel Wheel Heat Sink Small Storage Unit Large Storage Unit Improved Terrain Scanner Seismic Detector Light Armor Plating Light Armor Plating Medium Laser Assault Rifle Assault Rifle [Rating: 9] Favorites ----------- Power Light Ion Engine Engine Light Ion Engine Propulsion Light Treads Treads Light Treads Wheel Wheel Utility Light Armor Plating Device Improved Heat Sink Storage High-capacity Storage Unit Protection Light Armor Plating Weapon Light Assault Rifle Energy Gun Medium Laser Ballistic Gun Light Assault Rifle Build | -11 -10 -10 -10 ------- Run | Jun Mat Min Exi Slots Evolved . | . . . . Power . | . . . . Propulsion . | . . . . Utility . | . . . . Weapon . | . . . . Parts Attached 29 | 6 13 . 10 Power 3 | 1 1 . 1 Engine 3 | 1 1 . 1 Core . | . . . . Reactor . | . . . . Propulsion 8 | 2 4 . 2 Treads 4 | 1 2 . 1 Leg . | . . . . Wheel 4 | 1 2 . 1 Hover . | . . . . Flight . | . . . . Utility 8 | 1 4 . 3 Device 1 | . . . 1 Storage 3 | 1 2 . . Processor . | . . . . Hackware . | . . . . Protection 4 | . 2 . 2 Artifact . | . . . . Weapon 10 | 2 4 . 4 Energy Gun 2 | 1 1 . . Energy Cannon . | . . . . Ballistic Gun 8 | 1 3 . 4 Ballistic Cannon . | . . . . Launcher . | . . . . Special Weapon . | . . . . Impact Weapon . | . . . . Slashing Weapon . | . . . . Piercing Weapon . | . . . . Special Melee Weapon . | . . . . Unidentified Prototypes . | . . . . Parts Lost 13 | . . . 13 Power 2 | . . . 2 Propulsion 3 | . . . 3 Utility 4 | . . . 4 Weapon 4 | . . . 4 Highest Loss Streak 13 | . . . 13 To Critical Strikes 3 | . . . 3 Average Slot Usage (%) 97 | . 97 100 90 Engine 13 | . 14 14 10 Treads 14 | . 13 14 16 Wheel 13 | . 14 14 9 Storage 14 | . 14 14 14 Protection 12 | . 11 14 11 Energy Gun 7 | . 10 . . Ballistic Gun 20 | . 17 28 24 Naked Turns . | . . . . Heaviest Build 51 | 11 51 50 50 Greatest Support 40 | 10 16 16 40 Greatest Overweight (x) 5 | 1 5 3 4 Average Overweight (x) 3 | . 3 3 3 Largest Inventory Capacity 20 | 8 20 20 20 Average Capacity 18 | 7 18 20 20 Most Carried 20 | 8 20 20 20 Average Carried 17 | 4 17 19 18 Final Capacity 20 | 8 20 20 20 Final Carried 20 | 8 20 20 13 Class Distribution -------------------- 100% | Mutant Dominant Class ---------------- Mutant | -10/Materials Mutant | -10/Mines Mutant | -10/Exiles Resources | -11 -10 -10 -10 ----------- Run | Jun Mat Min Exi Matter Collected 529 | 264 214 51 . Remotely . | . . . . Salvage Created 482 | 45 413 24 . Parts 48 | 7 38 3 . Haulers Intercepted 1 | . 1 . . Recyclers Shooed . | . . . . Parts Field Recycled . | . . . . Retrieved Matter . | . . . . Parts Self-Destructed . | . . . . Prevented . | . . . . Kills | -11 -10 -10 -10 ------- Run | Jun Mat Min Exi Combat Hostiles Destroyed 16 | . 14 2 . Guns 16 | . 14 2 . Classes Destroyed 6 | 1 5 . . Tunneler 2 | 2 . . . Hauler 1 | . 1 . . Operator 1 | . 1 . . Watcher 1 | . 1 . . Swarmer 11 | . 9 2 . Grunt 5 | . 5 . . Best Kill Streak 3 | 2 3 2 . Combat Bots Only 3 | . 3 2 . Max Kills in Single Turn 2 | 2 1 1 . Gunslinging . | . . . . Exploded . | . . . . Melee . | . . . . Uniques/NPCs Destroyed . | . . . . Combat | -11 -10 -10 -10 -------- Run | Jun Mat Min Exi Damage Taken 1789 | . 318 105 1366 Core 254 | . 14 25 215 Absorbed by Shields . | . . . . Regen/Repaired (Parts) 53 | . 53 . . Core Remaining (%) 100 | 100 . . . Volleys Fired 78 | 4 50 8 16 Largest 2 | 2 2 2 2 Hottest 70 | 60 70 40 40 Shots Fired 155 | 8 101 16 30 Gun 155 | 8 101 16 30 Cannon . | . . . . Launcher . | . . . . Special . | . . . . Kinetic 113 | 4 63 16 30 Thermal 38 | . 38 . . Explosive . | . . . . Electromagnetic 4 | 4 . . . Robot Hit Streak 15 | 3 10 3 15 Robot Miss Streak 5 | 4 5 3 5 Penetration Max . | . . . . Secondary Targets 2 | . 1 1 . Max Gunslinging Chain 1 | . 1 1 . Shots Hit Robots 89 | 4 56 6 23 Core Hits 35 | 2 28 3 2 Critical Kills . | . . . . Critical Parts Destroyed . | . . . . Critical Strikes 3 | . 3 . . Burn 3 | . 3 . . Melee Attacks . | . . . . Impact . | . . . . Slashing . | . . . . Piercing . | . . . . Sneak Attacks . | . . . . Combat Hostiles . | . . . . Follow-up Attacks . | . . . . Damage Inflicted 1053 | 179 588 50 236 Guns 926 | 52 588 50 236 Cannons . | . . . . Explosions 127 | 127 . . . Melee . | . . . . Ramming . | . . . . Kinetic 586 | 24 276 50 236 Thermal 439 | 127 312 . . Explosive . | . . . . Electromagnetic 28 | 28 . . . Impact . | . . . . Slashing . | . . . . Piercing . | . . . . Highest Corruption 10 | . 3 3 10 Average Corruption 3 | . 2 3 5 Corruption Purged . | . . . . Corruption Blocked . | . . . . Effects 35 | . 22 7 6 Message Errors 11 | . 8 3 . Matter Fused 9 | . 6 2 1 Heat Flow Errors 2 | . 1 1 . Energy Discharges 3 | . 1 . 2 Data Loss (minor) 4 | . 3 1 . Data Loss (major) 2 | . 2 . . Misfires 2 | . 1 . 1 Misdirections 1 | . . . 1 Weapon Failures 1 | . . . 1 Overload Shots . | . . . . Overflow Damage 4 | 4 . . . Projectiles . | . . . . Explosions 4 | 4 . . . Melee . | . . . . Knockbacks . | . . . . Impact . | . . . . Kinetic . | . . . . Secondary . | . . . . Self-Inflicted Damage . | . . . . Shots . | . . . . Rammed . | . . . . Targets Rammed . | . . . . Kicked . | . . . . Crushed . | . . . . Highest Temperature 241 | 20 241 120 12 Average Temperature 59 | 15 68 23 5 Received Heat Transfer 66 | . 66 . . Siege Activations . | . . . . Robots Corrupted . | . . . . Combat Hostiles . | . . . . Parts Fried . | . . . . Impact Corruptions . | . . . . Robots Melted . | . . . . Combat Hostiles . | . . . . Parts Melted 1 | . 1 . . Heat Transferred 1347 | 200 1147 . . Parts Sabotaged . | . . . . Parts Stolen . | . . . . Parts Stripped . | . . . . Power Chain Reactions 1 | 1 . . . Missiles Intercepted . | . . . . Alert | -11 -10 -10 -10 ------- Run | Jun Mat Min Exi Peak Influence 241 | 10 241 114 . Initial 64 | . 6 64 . Average 104 | 3 114 93 . Maximum Alert Level 1 | . 1 . . Low Security (%) 90 | 100 87 100 . Level 1 9 | . 12 . . Level 2 . | . . . . Level 3 . | . . . . Level 4 . | . . . . Level 5 . | . . . . High Security . | . . . . Max Security . | . . . . Squads Dispatched 3 | . 3 . . Investigation 1 | . 1 . . Extermination . | . . . . Reinforcement 2 | . 2 . . Assault . | . . . . Garrison . | . . . . Intercept . | . . . . Searches Triggered . | . . . . Construction Impeded . | . . . . Haulers Reinforced . | . . . . Active Scanning Responses . | . . . . Cargo Convoy Interrupts . | . . . . Stealth | -11 -10 -10 -10 --------- Run | Jun Mat Min Exi Distress Signals 4 | . 4 . . Communications Jammed . | . . . . Distress Signals . | . . . . Times Spotted 40 | . 27 3 10 Peak Tracking Total 10 | . 5 2 10 Tactical Retreats 3 | . 2 . 1 Traps | -11 -10 -10 -10 ------- Run | Jun Mat Min Exi Traps Triggered 4 | . 4 . . Indirectly . | . . . . Trap Hack Attempts . | . . . . Triggered . | . . . . Disarmed . | . . . . Reprogrammed . | . . . . Reused . | . . . . Traps Extracted . | . . . . Installed . | . . . . Triggered . | . . . . Machines | -11 -10 -10 -10 ---------- Run | Jun Mat Min Exi Machines Disabled . | . . . . Max in Single Turn . | . . . . Machines Repaired . | . . . . Machines Sabotaged . | . . . . Overloaded Fab Kills . | . . . . Hacking | -11 -10 -10 -10 --------- Run | Jun Mat Min Exi Machines Accessed 7 | . 7 . . Terminals 5 | . 5 . . Fabricators . | . . . . Repair Stations 1 | . 1 . . Recycling Units 1 | . 1 . . Scanalyzers . | . . . . Garrison Access . | . . . . Total Hacks 17 | . 17 . . Successful 8 | . 8 . . Failed 8 | . 8 . . Catastrophic 1 | . 1 . . Database Lockouts 1 | . 1 . . Manual 15 | . 15 . . Terminals 13 | . 13 . . Fabricators . | . . . . Repair Stations 2 | . 2 . . Recycling Units 2 | . 2 . . Scanalyzers . | . . . . Garrison Access . | . . . . Terminal Hacks 4 | . 4 . . Robot Analysis 2 | . 2 . . Prototype ID Bank 2 | . 2 . . Fabricator Hacks . | . . . . Repair Station Hacks 2 | . 2 . . Scan Component 1 | . 1 . . Repair 1 | . 1 . . Recycling Unit Hacks . | . . . . Scanalyzer . | . . . . Garrison Access Hacks . | . . . . Unauthorized Hacks 2 | . 2 . . Terminals . | . . . . Fabricators . | . . . . Repair Stations . | . . . . Recycling Units 2 | . 2 . . Reject 1 | . 1 . . Mask 1 | . 1 . . Scanalyzers . | . . . . Garrison Access . | . . . . Data Cores Recovered . | . . . . Used . | . . . . Hacking Detections 4 | . 4 . . Full Trace Events 1 | . 1 . . Feedback Events . | . . . . Feedback Blocked . | . . . . Robot Schematics Acquired . | . . . . Robots Built . | . . . . Authchips . | . . . . Time . | . . . . Total Robot Build Rating . | . . . . Part Schematics Acquired . | . . . . Parts Built . | . . . . Authchips . | . . . . Time . | . . . . Total Part Build Rating . | . . . . Parts Repaired 1 | . 1 . . Time 26 | . 26 . . Parts Recycled . | . . . . Recycled Matter . | . . . . Retrieved Matter . | . . . . Retrieved Components . | . . . . Parts Scanalyzed . | . . . . Part Schematics Acquired . | . . . . Parts Damaged . | . . . . Bothacking | -11 -10 -10 -10 ------------ Run | Jun Mat Min Exi Used RIF Installer . | . . . . Robots Hacked . | . . . . Non-combat . | . . . . Combat . | . . . . Robot Hacks Applied . | . . . . Relay Couplers Released . | . . . . Fabnet Peak Effective % . | . . . . Robots Rewired . | . . . . Allies Hacked . | . . . . Hacks Repelled . | . . . . Allies | -11 -10 -10 -10 -------- Run | Jun Mat Min Exi Total Allies . | . . . . Largest Group . | . . . . Highest-Rated Group . | . . . . Highest-Rated Ally . | . . . . Total Orders . | . . . . Ally Attacks . | . . . . Total Damage . | . . . . Kills . | . . . . Allies Corrupted . | . . . . Allies Melted . | . . . . Intel | -11 -10 -10 -10 ------- Run | Jun Mat Min Exi Robot Analysis Total 2 | . 2 . . Derelict Logs Recovered 1 | . . 1 . Drone Launches . | . . . . Drone Recoveries . | . . . . Exploration | -11 -10 -10 -10 ------------- Run | Jun Mat Min Exi Turns Passed 1801 | 75 1190 406 130 Spaces Moved 1066 | 52 719 246 49 Core 3 | 3 . . . Treads 1 | . . . 1 Legs . | . . . . Wheels 1062 | 49 719 246 48 Hover . | . . . . Flight . | . . . . Fastest Speed 50 | 50 95 145 140 Average Speed 132 | 88 129 145 146 Slowest Speed 240 | 95 155 145 240 Overloaded Moves . | . . . . Propulsion Burnouts . | . . . . Robots Hopped . | . . . . Cave-ins Triggered . | . . . . Exploration Rate (%) 41 | 3 97 49 15 Regions Visited 3 Branch Regions 2 Pre-discovered Areas 1 | . . 1 . Known Exits Taken . | . . . . Unknown Exits Taken 3 | 1 1 1 . Scrap Searched 1 | . . 1 . Spaces Dug . | . . . . Terrain Destroyed . | . . . . Melee . | . . . . Projectile . | . . . . AOE . | . . . . Terrain Rammed . | . . . . Walls Destroyed . | . . . . Machines Disabled . | . . . . Actions | -11 -10 -10 -10 --------- Run | Jun Mat Min Exi Total 1326 | 72 891 284 79 Wait 112 | 1 81 27 3 Move 1063 | 51 718 245 49 Hop . | . . . . Pick Up 27 | 9 16 2 . Fast Attach 12 | 6 6 . . Attach 8 | . 1 . 7 Detach 1 | . 1 . . Swap 9 | . 6 . 3 Drop 15 | 1 12 2 . Fire 78 | 4 50 8 16 Melee . | . . . . Ram 1 | . . . 1 Kick . | . . . . Crush . | . . . . Escape Stasis . | . . . . Rewire . | . . . . Trap . | . . . . Miscellaneous . | . . . . Route ------- -11/Junkyard -10/Materials (discovered 5 exits: [*Mat x3] / [*Min x2]) -10/Mines (discovered 2 exits: [*Mat] / [*Exi]) -10/Exiles History --------- Turn | Location | Event 9 | -11/Junkyard | Discovered new exit (range 14) 76 | -11/Junkyard | Entered Materials 176 | -10/Materials | Discovered new exit (range 13) 304 | -10/Materials | Build established: Mutant 355 | -10/Materials | Discovered new exit (range 16) 519 | -10/Materials | Discovered new exit (range 7) 667 | -10/Materials | Discovered new exit (range 13) 813 | -10/Materials | Discovered new exit (range 15) 882 | -10/Materials | Repaired Lgt. Armor Plating 947 | -10/Materials | Central database locked down 1266 | -10/Materials | Entered Mines 1281 | -10/Mines | Found a hidden stash of uninstalled traps 1450 | -10/Mines | Assembled infested the area 1452 | -10/Mines | Learned location of Zion (-6) 1561 | -10/Mines | Met 8R-AWN 1622 | -10/Mines | Discovered new exit (range 8) 1652 | -10/Mines | Discovered new exit (range 13) 1672 | -10/Mines | Entered Exiles 1709 | -10/Exiles | Welcomed by 8R-AWN 1731 | -10/Exiles | Attacked by the Exiles 1777 | -10/Exiles | System corruption reached 10% 1783 | -10/Exiles | Core integrity fell below 50% 1796 | -10/Exiles | Core integrity fell below 20% 1802 | -10/Exiles | Destroyed by as-37923 with Assembled Heavy Rifle Last Messages --------------- 01790_ Lgt. Armor Plating destroyed. 01790_ Penetrated by HV Slug. 01790_ Critical hit (Destroy). 01790_ Assault Rifle destroyed. 01790_ HV Slug penetrates Wall. 01792_ Machine disabled. 01794_ System corrupted: Lgt. Assault Rifle jammed. 01794_ Penetrated by HV Slug. 01794_ HV Slug penetrates Wall. 01794_ Penetrated by HV Slug. 01794_ HV Slug penetrates Wall. 01795_ Lgt. Assault Rifle destroyed. 01799_ Penetrated by HV Slug. 01799_ HV Slug penetrates Wall. 01799_ Penetrated by HV Slug. 01799_ Lgt. Assault Rifle destroyed. 01799_ HV Slug penetrates Wall. 01800_ Wheel destroyed. 01801_ Imp. Heat Sink destroyed. 01801_ Knocked back. Map ----- +----------------------------------------------------+ | ?????????????????????????????????????????????????? | | ?????????????????????????????????????????????????? | | ?????????????????????????????????????????????????? | | ?????????????????????????????????????????????????? | | ?????????????????????????????????????????????????? | | ?????????????????????????????????????????????????? | | ?????????????????????????????????????????????????? | | ?????????????????????????????????????????????????? | | ?????????????????????????????????????????????????? | | ?????????????????????????????????????????????????? | | ?????????????????????????????????????????????????? | | ?????????????????????????????????????????????????? | | ?????????????????????????????????????????????????? | | ?????????????????????????????????????????????????? | | ?????????????????????????????????????????????????? | | ?????????????????????????????????????????????????? | | ??????????????????????????????????????????????? ?? | | ??????????????????????????????????????????????? | | ??????????????????????????????????????????????? | | ??????????????????????????????????????????????# | | ????????????????????????????????????????????## | | ????????????????????????????????????????????# | | ????????????????????????#####???????????????# | | ??????? "?????????????## #??????????????## | | ??????? ""??????????# #?????????????## # | | ?????? ""????????## @ ##????????????# # | | ?????? "?????### ###????????### #? | | ?????? #????# aga ########## #? | | ????? #??## #""""## #?? | | ????? ### * ##? | | ???? ## * #? | | ???? a ;### z ## | | ???? %% a ###"""""#### # | | ???? %; ;"########??#### * | | ???? #;;;####????????????##### | | ????? ;; #???????????????????### | | ????? ## ##?????????????????????### | | ??????" ""? ####????????????????????????### | | ??????" "?# ?????????????????????????????#" | | ??????#"""""""??#??????????????????????????????### | | ????????#####????????????????????????????????????? | | ?????????????????????????????????????????????????? | | ?????????????????????????????????????????????????? | | ?????????????????????????????????????????????????? | | ?????????????????????????????????????????????????? | | ?????????????????????????????????????????????????? | | ?????????????????????????????????????????????????? | | ?????????????????????????????????????????????????? | | ?????????????????????????????????????????????????? | | ?????????????????????????????????????????????????? | +----------------------------------------------------+ Best States ------------- Heat Dissipation 39 Energy Generation 10 Energy Capacity 250 Matter Stores 300 Matter Capacity 300 Sight Range 16 Terrain Scan Density 10 Armor Coverage 150 Evasion (%) 44 Recoil Reduction 2 Item Schematics ----------------- None Robot Schematics ------------------ None Fabricated ------------ Nothing Alien Tech Used ----------------- None Achievements -------------- None Challenges ------------ None Game ------ Seed VisualThermalRouter Manual? 0 Play Time 00:20:15 Cumulative 1358.9 hours Start 2023.04.06 @ 06:44:48 End 2023.04.06 @ 12:33:45 Sessions 3 Manual Loads 0 Difficulty Rogue Special Mode None Game No. 375 Rogue 375 Adventurer 0 Explorer 0 Win Type - Total 46 Types 28/6/7/3/0/0/0/2/0 Lore% 83 Gallery% 86 Achievement% 73 Wizard Run 0 Options --------- ASCII 0 Keyboard 1 Movement Numpad Keybinds 0 Fullscreen 1 Font 24/Crisp Map View 76x50 Tactical HUD 1 Map Filters NONE Filters NONE Steam 1 RUN: acd1f886-77ec-42cc-a5c6-d9a1f4fa18ef